bitfinex/quotes_BTCUSD_20250226
["timestamp","ask_amount","ask_price","bid_price","bid_amount"]
[1740591349296,0.01145198,86787.0,86784.0,0.172842]
[1740591349509,0.01145198,86787.0,86786.0,0.39211867]
[1740591349709,0.00041091,86795.0,86786.0,0.56495667]
[1740591350004,0.00041091,86795.0,86786.0,0.39111867]
[1740591350241,0.00041091,86795.0,86787.0,0.09211867]
[1740591350428,0.00807514,86794.0,86789.0,0.3]
[1740591350626,0.00807514,86794.0,86793.0,0.472824]
[1740591351201,0.00807514,86794.0,86793.0,0.48736485]
[1740591351399,0.00041091,86795.0,86794.0,0.48736385]
[1740591351612,0.230353,86823.0,86799.0,0.3]
[1740591351822,0.0008482,86830.0,86813.0,0.09211867]
[1740591352012,0.0008482,86830.0,86815.0,0.3]
[1740591352195,0.03432916,86822.0,86815.0,0.299]
[1740591352372,0.03432916,86822.0,86814.0,0.1281]
[1740591352576,0.03432916,86822.0,86816.0,0.172778]
[1740591352793,0.172777,86817.0,86816.0,1.5]
[1740591353653,0.172777,86817.0,86816.0,1.501]
[1740591353861,0.001,86822.0,86816.0,1.501]
[1740591354259,0.172777,86817.0,86816.0,1.501]
[1740591354760,0.18372664,86817.0,86816.0,1.501]
[1740591354911,0.18372664,86817.0,86816.0,0.001]
[1740591355119,0.18098417,86817.0,86816.0,0.001]
[1740591355594,0.172809,86801.0,86800.0,0.0487]
[1740591355932,0.18097894,86801.0,86800.0,0.0487]
[1740591356126,0.18097894,86801.0,86794.0,0.00012383]
[1740591356127,0.172821,86795.0,86794.0,0.00012383]
[1740591356554,0.18095755,86795.0,86794.0,0.00012383]
[1740591357339,0.18095755,86795.0,86794.0,0.00612383]
[1740591357340,0.00913655,86795.0,86794.0,0.00612383]
[1740591357807,0.00913655,86795.0,86794.0,0.47894683]
[1740591358060,0.001,86795.0,86794.0,0.47894683]
[1740591358258,0.001,86795.0,86794.0,0.55644683]
[1740591358683,0.001,86795.0,86794.0,2.05644683]
[1740591358890,0.001,86795.0,86794.0,2.11858768]
[1740591359896,0.01370412,86809.0,86795.0,0.31454085]
[1740591360100,0.01370412,86809.0,86808.0,0.09211867]
[1740591360331,0.172799,86806.0,86805.0,0.299]
[1740591360526,0.172821,86795.0,86794.0,0.37702383]
[1740591360729,0.172821,86795.0,86794.0,0.00212383]
[1740591360974,0.172821,86795.0,86794.0,3.93e-06]
[1740591360975,0.18100615,86795.0,86794.0,3.93e-06]
[1740591361682,0.00818515,86795.0,86794.0,3.93e-06]
[1740591362096,0.172821,86795.0,86794.0,3.93e-06]
[1740591362309,0.17936912,86795.0,86794.0,3.93e-06]
[1740591362724,0.22305076,86795.0,86794.0,0.00400393]
[1740591362946,0.05022976,86795.0,86794.0,0.17682693]
[1740591363267,0.04368164,86795.0,86794.0,0.17282693]
[1740591363661,0.04368164,86795.0,86794.0,0.17682693]
[1740591363989,0.02226469,86795.0,86794.0,0.47682693]
[1740591364197,0.02195937,86795.0,86794.0,0.47282693]
[1740591364397,0.02195937,86795.0,86794.0,0.60932693]
[1740591364398,0.02295937,86795.0,86794.0,0.60932693]
[1740591364802,0.02295937,86795.0,86794.0,1.93650393]
[1740591365020,0.02295937,86795.0,86794.0,2.10932693]
[1740591365419,0.19578037,86795.0,86794.0,1.85440393]
[1740591365642,0.02949551,86795.0,86794.0,1.85440393]
[1740591365841,0.01773823,86795.0,86794.0,1.85440393]
[1740591366062,0.00856477,86795.0,86794.0,1.84740393]
[1740591366211,0.18238577,86795.0,86794.0,1.85440393]
[1740591366413,0.19055861,86795.0,86794.0,1.85440393]
[1740591367438,0.01773761,86795.0,86794.0,1.85440393]
[1740591367837,0.00956477,86795.0,86794.0,1.85440393]
[1740591368280,0.01610524,86795.0,86794.0,1.85440393]
[1740591368498,0.18238577,86795.0,86794.0,1.85440393]
[1740591369031,0.19056301,86795.0,86794.0,1.85440393]
[1740591369615,0.19056301,86795.0,86794.0,1.50700393]
[1740591370165,0.18956301,86795.0,86794.0,1.50000393]
[1740591370396,0.18956301,86795.0,86794.0,3.93e-06]
[1740591370959,0.00809253,86795.0,86794.0,0.00700393]
[1740591371161,0.17343732,86795.0,86794.0,0.00700393]
[1740591371804,0.17343732,86795.0,86794.0,9.3e-07]
[1740591372008,0.25383732,86795.0,86794.0,9.3e-07]
[1740591372227,0.25432544,86795.0,86794.0,9.3e-07]
[1740591372435,0.17343732,86795.0,86794.0,9.3e-07]
[1740591372630,0.230465,86781.0,86777.0,0.0004244]
[1740591372878,0.00061632,86795.0,86777.0,0.00083531]
[1740591373219,0.00061632,86795.0,86794.0,0.0034243]
[1740591373220,0.172821,86795.0,86794.0,0.0034243]
[1740591373391,0.172821,86795.0,86794.0,0.0004243]
[1740591373868,0.0005757,86781.0,86778.0,0.0462]
[1740591374276,0.230412,86801.0,86781.0,0.08]
[1740591374277,0.172836,86788.0,86781.0,0.08]
[1740591374530,0.0213818,86795.0,86783.0,0.09211867]
[1740591374706,0.230406,86803.0,86786.0,0.3]
[1740591374906,0.2770468,86829.0,86794.0,1.5]
[1740591375109,0.0136841,86800.0,86799.0,0.172811]
[1740591375309,0.0008482,86830.0,86798.0,0.3]
[1740591375512,0.172811,86800.0,86798.0,0.3]
[1740591375665,0.172813,86799.0,86798.0,0.3]
[1740591376231,0.172813,86799.0,86798.0,1.8]
[1740591376568,0.172811,86800.0,86798.0,1.8]
[1740591376794,0.230371,86817.0,86796.0,0.3471]
[1740591376995,0.230337,86829.0,86797.0,0.00161298]
[1740591377195,0.001,86799.0,86798.0,0.001]
[1740591377703,0.001,86799.0,86798.0,0.17542777]
[1740591378002,0.001,86799.0,86798.0,0.001]
[1740591378175,0.001,86799.0,86798.0,0.173815]
[1740591378607,0.001,86799.0,86798.0,0.172815]
[1740591378784,0.2311852,86830.0,86797.0,0.3]
[1740591378785,0.230363,86820.0,86797.0,0.3]
[1740591378985,0.172791,86810.0,86800.0,0.172809]
[1740591379185,0.230363,86820.0,86800.0,0.172809]
[1740591379186,0.172789,86811.0,86800.0,0.172809]
[1740591379393,0.0008482,86830.0,86801.0,0.09373134]
[1740591379598,0.172775,86818.0,86808.0,0.172794]
[1740591379802,0.230361,86821.0,86807.0,0.172795]
[1740591380001,0.23034,86828.0,86806.0,0.230396]
[1740591380204,0.0008482,86830.0,86801.0,0.09211867]
[1740591380205,0.0008482,86830.0,86814.0,0.0756]
[1740591380408,0.0008482,86830.0,86815.0,0.0497]
[1740591380605,0.0008482,86830.0,86816.0,0.3273]
[1740591380782,0.0008482,86830.0,86817.0,0.3]
[1740591380783,0.172756,86828.0,86817.0,0.3]
[1740591380984,0.0008482,86830.0,86817.0,0.3]
[1740591381195,0.172775,86818.0,86817.0,0.3]
[1740591381411,0.2311832,86830.0,86816.0,0.3273]
[1740591381412,0.172777,86817.0,86816.0,0.3273]
[1740591381640,0.172779,86816.0,86815.0,0.00012256]
[1740591383540,0.174779,86816.0,86815.0,0.00012256]
[1740591383700,0.18333921,86816.0,86815.0,0.00012256]
[1740591384975,0.18133921,86816.0,86815.0,0.00012256]
[1740591385196,0.18333921,86816.0,86815.0,0.00012256]
[1740591385560,0.18133921,86816.0,86815.0,0.00012256]
[1740591385988,0.18433921,86816.0,86815.0,0.00012256]
[1740591388346,0.18133921,86816.0,86815.0,0.00012256]
[1740591388693,0.18133921,86816.0,86815.0,0.00212256]
[1740591389182,0.18133921,86816.0,86815.0,0.00012256]
[1740591389398,0.172813,86799.0,86798.0,0.0004243]
[1740591390445,0.18137321,86799.0,86798.0,0.0004243]
[1740591391073,0.00856021,86799.0,86798.0,0.0004243]
[1740591391276,0.00856021,86799.0,86798.0,0.2544393]
[1740591391487,0.00856021,86799.0,86798.0,0.8817393]
[1740591391693,0.00856021,86799.0,86798.0,2.4323393]
[1740591391912,0.00856021,86799.0,86798.0,2.2595243]
[1740591392116,0.00856021,86799.0,86798.0,2.2565243]
[1740591392318,0.00856021,86799.0,86798.0,2.4293393]
[1740591392516,0.00956021,86799.0,86798.0,2.4353393]
[1740591392897,0.00856021,86799.0,86798.0,2.4293393]
[1740591393274,0.00956021,86799.0,86798.0,2.4353393]
[1740591394494,0.172789,86811.0,86799.0,0.3]
[1740591394697,0.00012331,86816.0,86801.0,0.3]
[1740591394872,0.00012331,86816.0,86799.0,0.3]
[1740591395074,0.00012331,86816.0,86799.0,0.6273]
[1740591395516,0.00012331,86816.0,86802.0,0.172805]
[1740591395715,0.00012331,86816.0,86801.0,0.3]
[1740591395914,0.00012331,86816.0,86815.0,0.172781]
[1740591396197,0.00012331,86816.0,86815.0,0.97519967]
[1740591396369,0.17290231,86816.0,86815.0,2.30241867]
[1740591396737,0.17290231,86816.0,86815.0,2.00241867]
[1740591396983,0.00012331,86816.0,86815.0,2.00241867]
[1740591397199,0.172761,86826.0,86816.0,0.0464]
[1740591397499,0.172762,86825.0,86817.0,0.3273]
[1740591397799,0.230274,86853.0,86818.0,0.230366]
[1740591398022,0.00485,86859.0,86818.0,0.230366]
[1740591398023,0.00012383,86847.0,86843.0,0.09211867]
[1740591398212,0.00012383,86847.0,86846.0,1.972719]
[1740591398412,0.00012383,86847.0,86846.0,2.86235985]
[1740591398617,0.00012383,86847.0,86846.0,2.99906224]
[1740591398828,0.00485,86859.0,86850.0,0.472711]
[1740591399036,0.00485,86859.0,86850.0,1.46551339]
[1740591399450,0.00485,86859.0,86851.0,0.31454085]
[1740591399653,0.00485,86859.0,86858.0,1.8]
[1740591399803,0.00485,86859.0,86858.0,1.972695]
[1740591400015,0.00485,86859.0,86858.0,2.299995]
[1740591400211,0.00485,86859.0,86858.0,2.97558688]
[1740591400603,0.000848,86887.0,86860.0,0.3774]
[1740591400824,0.000848,86887.0,86865.0,0.58462185]
[1740591401023,0.177494,86884.0,86865.0,1.54447288]
[1740591401223,0.00485,86884.0,86865.0,0.78945103]
[1740591401489,0.00485,86884.0,86865.0,1.50993203]
[1740591401661,0.00485,86884.0,86865.0,1.52447288]
[1740591402083,0.17265,86881.0,86865.0,1.52447288]
[1740591402287,0.172656,86878.0,86865.0,1.53147288]
[1740591402512,0.172657,86877.0,86865.0,1.53147288]
[1740591402718,0.00485,86884.0,86865.0,1.53147288]
[1740591402911,0.00485,86884.0,86865.0,1.55147288]
[1740591403091,0.00485,86884.0,86865.0,2.25147288]
[1740591403271,0.00485,86884.0,86865.0,2.23147288]
[1740591403771,0.00485,86884.0,86865.0,2.27147288]
[1740591404132,0.00485,86884.0,86871.0,0.58494901]
[1740591404257,0.00485,86884.0,86881.0,0.472649]
[1740591404458,0.00126115,86882.0,86881.0,1.54828004]
[1740591404664,0.00126115,86882.0,86881.0,1.52834088]
[1740591404873,6.515e-05,86884.0,86883.0,0.49258416]
[1740591405135,0.00018891,86884.0,86883.0,1.47993688]
[1740591405489,0.00018891,86884.0,86883.0,2.17993688]
[1740591405713,0.000848,86893.0,86883.0,2.17993688]
[1740591405714,0.172628,86892.0,86884.0,0.48718385]
[1740591405925,0.172641,86885.0,86884.0,0.3]
[1740591406133,0.1714805,86885.0,86884.0,0.33561673]
[1740591406347,0.1714805,86885.0,86884.0,0.03561673]
[1740591407373,0.000848,86893.0,86884.0,0.03561673]
[1740591407573,0.172641,86885.0,86884.0,0.03561673]
[1740591407750,0.172644,86884.0,86876.0,0.172658]
[1740591408077,0.230172,86892.0,86883.0,0.007]
[1740591408299,0.172641,86885.0,86884.0,0.03560607]
[1740591408502,0.172641,86885.0,86884.0,0.03567607]
[1740591408734,0.172641,86885.0,86884.0,0.03867607]
[1740591409218,0.172641,86885.0,86884.0,0.03567607]
[1740591409461,0.231022,86891.0,86884.0,0.04167607]
[1740591409629,0.17264,86886.0,86885.0,0.03560607]
[1740591412131,0.17264,86886.0,86885.0,0.03660607]
[1740591412508,0.17264,86886.0,86885.0,0.03560607]
[1740591414614,0.172638,86887.0,86885.0,0.03567607]
[1740591414815,0.000848,86891.0,86887.0,0.3]
[1740591414994,0.000848,86891.0,86888.0,0.03560607]
[1740591415207,0.231023,86891.0,86887.0,0.3]
[1740591415516,0.172634,86889.0,86888.0,0.0355853]
[1740591415768,0.000848,86891.0,86888.0,1.5355853]
[1740591415928,0.172634,86889.0,86888.0,0.0355853]
[1740591416148,0.000848,86891.0,86888.0,0.03557903]
[1740591416349,0.173478,86891.0,86889.0,0.03557903]
[1740591416611,0.173478,86891.0,86890.0,1.53557903]
[1740591417158,0.000848,86891.0,86890.0,1.70821103]
[1740591417395,0.000848,86893.0,86892.0,0.472628]
[1740591417747,0.000848,86893.0,86892.0,1.47854788]
[1740591417959,0.000848,86893.0,86892.0,0.93074788]
[1740591418159,0.000848,86893.0,86892.0,0.75811988]
[1740591418360,0.000848,86893.0,86892.0,2.43074788]
[1740591418683,0.000848,86893.0,86892.0,3.67854788]
[1740591418883,0.000848,86893.0,86892.0,3.68554788]
[1740591419282,0.000848,86893.0,86892.0,3.75358704]
[1740591419540,0.000848,86893.0,86892.0,3.74658704]
[1740591419698,0.000848,86893.0,86892.0,3.75365704]
[1740591420496,0.000848,86893.0,86892.0,3.73371788]
[1740591420708,0.172584,86915.0,86909.0,0.3]
[1740591420915,0.172584,86915.0,86897.0,0.01454085]
[1740591420916,0.0476,86950.0,86894.0,0.3]
[1740591421126,0.0476,86950.0,86909.0,0.3]
[1740591421306,0.17256,86926.0,86918.0,0.3]
[1740591421509,0.230033,86944.0,86919.0,0.03557903]
[1740591421708,0.0008476,86953.0,86920.0,0.03557903]
[1740591421911,0.2308966,86938.0,86912.0,0.0114]
[1740591422092,0.00497376,86936.0,86913.0,0.0355598]
[1740591422297,0.00497376,86936.0,86914.0,0.0355598]
[1740591422589,0.17258,86916.0,86915.0,0.0355598]
[1740591422788,0.230093,86922.0,86915.0,0.0355598]
[1740591422992,0.00582136,86936.0,86912.0,0.0114]
[1740591422993,0.00582136,86936.0,86916.0,0.0355598]
[1740591423369,0.00582136,86936.0,86935.0,0.172542]
[1740591423576,0.00582136,86936.0,86935.0,0.0355598]
[1740591423867,0.17836136,86936.0,86935.0,0.0355598]
[1740591424884,0.00582136,86936.0,86935.0,1.5355598]
[1740591425199,0.229968,86969.0,86935.0,2.35094265]
[1740591425403,0.177341,86961.0,86947.0,0.472518]
[1740591425604,0.00485,86961.0,86947.0,0.3355598]
[1740591425808,0.00485,86961.0,86947.0,0.5080778]
[1740591426009,0.177342,86961.0,86947.0,2.0080778]
[1740591426185,0.00485,86961.0,86947.0,2.34991865]
[1740591426385,0.00485,86961.0,86947.0,2.43001865]
[1740591426528,0.00485,86961.0,86947.0,2.43008865]
[1740591427787,0.00485,86961.0,86947.0,2.97788865]
[1740591428318,0.00485,86961.0,86947.0,2.98488865]
[1740591428552,0.00485,86961.0,86947.0,2.81237065]
[1740591428773,0.00485,86961.0,86947.0,2.97788865]
[1740591428973,0.00485,86974.0,86948.0,0.31454085]
[1740591429105,0.00526254,86974.0,86949.0,0.6628598]
[1740591429306,0.23001,86953.0,86950.0,0.3355598]
[1740591429534,0.172508,86952.0,86951.0,0.3628598]
[1740591429851,0.172508,86952.0,86951.0,2.1628598]
[1740591430057,0.172481,86966.0,86951.0,2.1628598]
[1740591430258,0.00485,86999.0,86951.0,2.1628598]
[1740591430259,0.02013486,86993.0,86953.0,0.3]
[1740591430483,0.172485,86964.0,86954.0,0.3628598]
[1740591430619,0.02013486,86993.0,86955.0,0.0355598]
[1740591430820,0.02013486,86993.0,86956.0,0.3355598]
[1740591431086,0.172499,86957.0,86956.0,0.0355598]
[1740591431299,0.172508,86952.0,86951.0,7e-05]
[1740591431675,0.172508,86952.0,86951.0,0.00048254]
[1740591431904,0.172508,86952.0,86951.0,7.4e-07]
[1740591432504,0.17299508,86952.0,86951.0,7.4e-07]
[1740591432919,0.17299508,86952.0,86951.0,0.00100074]
[1740591433454,0.17299508,86952.0,86951.0,0.001]
[1740591434091,0.1729316,86952.0,86951.0,0.001]
[1740591435118,0.172516,86948.0,86947.0,7e-05]
[1740591435475,0.172516,86948.0,86947.0,0.03578504]
[1740591436224,0.172516,86948.0,86947.0,1.53578504]
[1740591437353,0.174516,86948.0,86947.0,1.53578504]
[1740591437575,0.46005,86947.0,86918.0,0.127]
[1740591437776,0.172576,86918.0,86910.0,0.0008472]
[1740591437984,0.172576,86918.0,86917.0,0.00512376]
[1740591438587,0.172576,86918.0,86917.0,1.50512376]
[1740591438800,0.230099,86920.0,86917.0,1.50512376]
[1740591439029,0.005123,86932.0,86917.0,1.50512376]
[1740591439247,0.2770468,86951.0,86918.0,0.25306204]
[1740591439449,0.17254,86937.0,86919.0,0.30161041]
[1740591439649,0.344959,86967.0,86936.0,1.5]
[1740591439827,0.172538,86937.0,86936.0,1.5]
[1740591440053,0.172547,86933.0,86921.0,0.3]
[1740591440231,0.229999,86957.0,86923.0,0.3]
[1740591440438,0.172547,86933.0,86924.0,0.03573074]
[1740591440637,0.172552,86930.0,86925.0,0.03573074]
[1740591440832,0.344999,86957.0,86923.0,0.6273]
[1740591441057,0.172561,86926.0,86924.0,0.03572692]
[1740591441329,0.230017,86950.0,86925.0,0.03572692]
[1740591441485,0.3,86966.0,86927.0,0.3]
[1740591441691,0.344975,86963.0,86928.0,0.03572692]
[1740591441853,0.172553,86930.0,86929.0,0.03572692]
[1740591442077,0.172553,86930.0,86929.0,0.3273]
[1740591442309,0.172553,86930.0,86888.0,7e-05]
[1740591442310,0.172576,86918.0,86907.0,0.3273]
[1740591443145,0.172576,86918.0,86891.0,0.3794]
[1740591443628,0.172576,86918.0,86891.0,0.3323]
[1740591443776,0.01132,86919.0,86891.0,0.3323]
[1740591443981,0.172626,86893.0,86891.0,0.005]
[1740591444951,0.147626,86893.0,86892.0,1.50007]
[1740591446338,0.148626,86893.0,86892.0,1.50007]
[1740591446737,0.001,86893.0,86891.0,0.005]
[1740591446960,0.001,86893.0,86884.0,8e-07]
[1740591446961,0.172641,86885.0,86884.0,8e-07]
[1740591447887,0.172653,86879.0,86878.0,0.005]
[1740591449455,0.174653,86879.0,86878.0,0.005]
[1740591449657,0.172699,86856.0,86853.0,0.5528]
[1740591449909,0.172703,86854.0,86853.0,0.005]
[1740591450121,0.172703,86854.0,86853.0,0.00541295]
[1740591450724,0.172703,86854.0,86853.0,1.50541295]
[1740591451053,0.18121122,86854.0,86853.0,1.50541295]
[1740591452655,0.18121122,86854.0,86853.0,1.49927969]
[1740591452790,0.18221122,86854.0,86853.0,1.49927969]
[1740591453195,0.172729,86841.0,86830.0,0.0008472]
[1740591453568,0.172729,86841.0,86840.0,0.00512376]
[1740591454377,0.18123722,86841.0,86840.0,0.00512376]
[1740591455609,0.18123722,86841.0,86840.0,1e-08]
[1740591456010,0.18323722,86841.0,86840.0,1e-08]
[1740591456435,0.18123722,86841.0,86840.0,1e-08]
[1740591456572,0.1358964,86831.0,86830.0,0.0008472]
[1740591456769,0.1358964,86831.0,86830.0,0.00097103]
[1740591458580,0.1358964,86831.0,86830.0,1.50097103]
[1740591460023,0.1368964,86831.0,86830.0,1.50097103]
[1740591460431,0.1358964,86831.0,86830.0,1.50097103]
[1740591463247,0.14440462,86831.0,86830.0,1.50097103]
[1740591463841,0.14440462,86831.0,86830.0,1.50104103]
[1740591463994,0.14440462,86831.0,86830.0,0.00104103]
[1740591465197,0.14624409,86831.0,86830.0,0.00104103]
[1740591466209,0.14540462,86831.0,86830.0,0.00104103]
[1740591467595,0.00950822,86831.0,86830.0,0.00104103]
[1740591467809,0.18225722,86831.0,86830.0,0.00104103]
[1740591476883,0.172755,86828.0,86827.0,0.005]
[1740591477913,0.18126322,86828.0,86827.0,1.505]
[1740591479795,0.18126322,86828.0,86827.0,1.54085243]
[1740591479995,0.18126322,86828.0,86827.0,1.505]
[1740591480811,0.18126322,86828.0,86800.0,0.3]
[1740591480812,0.172781,86815.0,86814.0,6e-07]
[1740591481416,0.172781,86815.0,86814.0,0.03593227]
[1740591482024,0.230345,86826.0,86814.0,0.03593227]
[1740591482025,0.230321,86836.0,86814.0,0.03593227]
[1740591482198,0.18128922,86815.0,86814.0,6e-07]
[1740591482397,0.18128922,86815.0,86814.0,0.0359459]
[1740591482598,0.00850822,86815.0,86814.0,1.5359459]
[1740591482802,0.003,86828.0,86814.0,1.5822459]
[1740591483005,0.003,86828.0,86827.0,0.472757]
[1740591483286,0.003,86828.0,86827.0,0.97254315]
[1740591483532,0.175755,86828.0,86827.0,1.9852453]
[1740591483766,0.175755,86828.0,86827.0,1.6579453]
[1740591483944,0.0004241,86831.0,86827.0,1.8307013]
[1740591484143,0.0004241,86831.0,86828.0,0.0349453]
[1740591484308,0.172751,86830.0,86829.0,0.0349453]
[1740591485563,0.172751,86830.0,86829.0,0.0339453]
[1740591485783,0.19419929,86830.0,86829.0,0.0340153]
[1740591487219,0.02144829,86830.0,86829.0,0.0360153]
[1740591487421,0.19419929,86830.0,86829.0,0.0360153]
[1740591487863,0.19419929,86830.0,86829.0,0.0340153]
[1740591488242,0.19419929,86830.0,86829.0,0.0370153]
[1740591489164,0.02144829,86830.0,86829.0,0.0370153]
[1740591489408,0.02144829,86830.0,86829.0,0.52592123]
[1740591489551,0.172677,86867.0,86853.0,0.293905]
[1740591489884,0.00054758,86854.0,86853.0,1.9551453]
[1740591490091,0.17325058,86854.0,86853.0,1.9551453]
[1740591490293,0.00054758,86854.0,86853.0,1.9551453]
[1740591491431,0.17325058,86854.0,86853.0,1.9551453]
[1740591491667,0.17425058,86854.0,86853.0,1.9611453]
[1740591491916,0.00154758,86854.0,86853.0,1.9611453]
[1740591492292,0.00154758,86854.0,86853.0,1.9612153]
[1740591492468,0.00154758,86854.0,86853.0,2.14846115]
[1740591492681,0.17425058,86854.0,86853.0,1.9612153]
[1740591492877,0.00154758,86854.0,86853.0,1.9612153]
[1740591493085,0.00154758,86854.0,86853.0,2.2885153]
[1740591493313,0.00154758,86854.0,86853.0,2.4612203]
[1740591493515,0.00154758,86854.0,86853.0,2.47576115]
[1740591493670,0.10184195,86907.0,86874.0,0.172663]
[1740591493869,0.00526295,86897.0,86877.0,0.09211867]
[1740591494093,0.172653,86879.0,86878.0,0.33586541]
[1740591494292,0.172653,86879.0,86878.0,1.83586541]
[1740591494468,0.172653,86879.0,86878.0,1.8]
[1740591495001,0.172653,86879.0,86878.0,1.5]
[1740591495782,0.172653,86879.0,86878.0,1.505]
[1740591496226,0.172653,86879.0,86878.0,0.005]
[1740591496434,0.172653,86879.0,86878.0,1e-06]
[1740591496608,0.172703,86854.0,86847.0,0.0783]
[1740591496808,0.172703,86854.0,86845.0,0.0496]
[1740591498299,0.172703,86854.0,86846.0,1.5]
[1740591498713,0.264841,86877.0,86853.0,0.00207]
[1740591498946,0.172703,86854.0,86853.0,0.00214]
[1740591499148,0.172703,86854.0,86853.0,0.00014]
[1740591499551,0.230239,86867.0,86853.0,0.00014]
[1740591499552,0.0005238,86877.0,86853.0,0.00114]
[1740591499963,0.034629,86881.0,86853.0,0.00114]
[1740591500186,0.172703,86854.0,86853.0,0.00114]
[1740591500579,0.034629,86881.0,86853.0,0.00114]
[1740591500900,0.172685,86864.0,86854.0,0.382]
[1740591501103,0.264814,86886.0,86862.0,0.3484]
[1740591501304,0.00485,86897.0,86862.0,0.0484]
[1740591501591,0.172685,86863.0,86862.0,0.0484]
[1740591502236,0.00041269,86886.0,86862.0,0.0484]
[1740591502462,0.00041269,86886.0,86864.0,0.3]
[1740591502785,0.172669,86871.0,86864.0,0.3]
[1740591503010,0.172672,86870.0,86864.0,0.3]
[1740591503226,0.00041269,86886.0,86864.0,0.6273]
[1740591503423,0.00041269,86886.0,86867.0,0.3]
[1740591503626,0.172657,86878.0,86869.0,0.0753]
[1740591503826,0.172653,86880.0,86869.0,0.0753]
[1740591504054,0.172652,86880.0,86870.0,0.39211867]
[1740591504262,0.230191,86884.0,86870.0,0.39211867]
[1740591504464,0.00041269,86886.0,86870.0,0.09211867]
[1740591504776,0.00241269,86886.0,86879.0,0.09211867]
[1740591504980,0.00241269,86886.0,86885.0,0.553541]
[1740591505183,0.00041269,86886.0,86885.0,0.89538185]
[1740591505719,0.00041269,86886.0,86885.0,0.72274085]
[1740591505923,0.00041269,86886.0,86885.0,0.89538185]
[1740591506142,0.00041269,86886.0,86885.0,0.7082]
[1740591506345,0.00041269,86886.0,86885.0,0.70827]
[1740591506549,0.17347649,86886.0,86885.0,2.20827]
[1740591506723,0.17347649,86886.0,86885.0,7e-05]
[1740591507280,0.17447649,86886.0,86885.0,0.00707]
[1740591507497,0.20127903,86886.0,86885.0,0.00707]
[1740591507657,0.20027903,86886.0,86885.0,7e-05]
[1740591508081,0.20027903,86886.0,86885.0,0.00107]
[1740591508492,0.172669,86871.0,86870.0,0.0008476]
[1740591509663,0.230211,86877.0,86864.0,6e-07]
[1740591509864,0.02,86885.0,86864.0,6e-07]
[1740591509865,0.172681,86865.0,86864.0,6e-07]
[1740591510301,0.172703,86854.0,86853.0,6e-07]
[1740591510516,0.230263,86857.0,86853.0,6e-07]
[1740591510753,0.172703,86854.0,86853.0,6e-07]
[1740591510935,0.472703,86854.0,86853.0,6e-07]
[1740591511640,0.81217327,86854.0,86853.0,6e-07]
[1740591512041,0.83343189,86854.0,86853.0,6e-07]
[1740591513408,0.86043189,86854.0,86853.0,6e-07]
[1740591513560,0.86100585,86854.0,86853.0,6e-07]
[1740591514376,0.86100585,86854.0,86829.0,6e-07]
[1740591514377,0.172751,86830.0,86829.0,6e-07]
[1740591514565,0.172751,86830.0,86829.0,1.8e-07]
[1740591515187,0.472781,86815.0,86814.0,9.8e-07]
[1740591515616,0.49403962,86815.0,86814.0,9.8e-07]
[1740591515828,0.172826,86792.0,86791.0,8.8e-07]
[1740591516032,0.172826,86792.0,86791.0,0.00012419]
[1740591516281,0.45171896,86792.0,86791.0,0.00012419]
[1740591516484,0.17283,86790.0,86789.0,1.9e-07]
[1740591516927,0.17340396,86790.0,86789.0,1.9e-07]
[1740591517075,0.18460396,86790.0,86789.0,1.9e-07]
[1740591517275,0.02,86787.0,86776.0,5.9e-07]
[1740591517480,0.472856,86777.0,86776.0,5.9e-07]
[1740591517705,0.172882,86764.0,86763.0,7.9e-07]
[1740591517904,0.172882,86764.0,86737.0,0.087]
[1740591517905,0.13600313,86744.0,86743.0,1.9e-07]
[1740591518431,0.13600313,86744.0,86737.0,3.9e-07]
[1740591518432,0.172934,86738.0,86737.0,3.9e-07]
[1740591518779,0.17354432,86738.0,86737.0,3.9e-07]
[1740591519055,0.20402543,86738.0,86737.0,3.9e-07]
[1740591519234,0.50107223,86738.0,86737.0,3.9e-07]
[1740591519448,0.53227223,86738.0,86737.0,3.9e-07]
[1740591519648,0.79227223,86738.0,86737.0,3.9e-07]
[1740591519973,0.78107223,86738.0,86737.0,3.9e-07]
[1740591520156,0.83630389,86738.0,86737.0,3.9e-07]
[1740591520581,0.88904474,86738.0,86737.0,3.9e-07]
[1740591520787,0.57745709,86738.0,86737.0,3.9e-07]
[1740591520968,0.59045709,86738.0,86737.0,3.9e-07]
[1740591521319,0.63099794,86738.0,86737.0,3.9e-07]
[1740591521557,0.172958,86726.0,86725.0,7.9e-07]
[1740591521894,0.19892592,86726.0,86725.0,7.9e-07]
[1740591522311,0.22018454,86726.0,86725.0,7.9e-07]
[1740591523411,0.22118454,86726.0,86725.0,7.9e-07]
[1740591524452,0.22018454,86726.0,86725.0,7.9e-07]
[1740591524856,0.19892592,86726.0,86725.0,7.9e-07]
[1740591526784,0.19992592,86726.0,86725.0,7.9e-07]
[1740591527105,0.19892592,86726.0,86725.0,7.9e-07]
[1740591527434,0.20192592,86726.0,86725.0,7.9e-07]
[1740591527630,0.19388646,86726.0,86725.0,7.9e-07]
[1740591527834,0.19088646,86726.0,86725.0,7.9e-07]
[1740591528261,0.19488646,86726.0,86725.0,7.9e-07]
[1740591529704,0.19823416,86726.0,86725.0,7.9e-07]
[1740591530088,0.20523416,86726.0,86725.0,7.9e-07]
[1740591530449,0.17733822,86726.0,86725.0,7.9e-07]
[1740591530916,0.18133822,86726.0,86725.0,7.9e-07]
[1740591531124,0.18133822,86726.0,86725.0,0.00042469]
[1740591531806,0.17889069,86726.0,86725.0,0.00042469]
[1740591532161,0.17889069,86726.0,86725.0,6.9e-07]
[1740591532912,0.17298,86715.0,86714.0,6.9e-07]
[1740591533471,0.230633,86718.0,86714.0,6.9e-07]
[1740591533676,0.13611234,86698.0,86697.0,6.9e-07]
[1740591533875,0.173034,86688.0,86687.0,0.04334069]
[1740591535175,0.173036,86687.0,86686.0,0.005]
[1740591535391,0.173062,86674.0,86661.0,0.005]
[1740591538148,0.176062,86674.0,86661.0,0.005]
[1740591538368,0.003,86674.0,86661.0,0.005]
[1740591538582,0.176062,86674.0,86661.0,0.005]
[1740591539003,0.003,86674.0,86673.0,1.5877]
[1740591539218,0.176062,86674.0,86673.0,1.5877]
[1740591539417,0.003,86674.0,86673.0,1.5877]
[1740591539552,0.230694,86695.0,86673.0,1.5877]